bitfinex-derivatives/quotes_SOLF0:USTF0_20260220
["timestamp","ask_amount","ask_price","bid_price","bid_amount"]
[1771612648726,20.57748795,84.699,84.622,20.59669236]
[1771612648928,10.6316,84.679,84.622,20.59669236]
[1771612649335,20.57748795,84.699,84.622,20.59669236]
[1771612649531,10.6324,84.672,84.622,20.59669236]
[1771612649737,10.6324,84.672,84.623,10.6385]
[1771612650232,10.6324,84.672,84.622,20.59669236]
[1771612650431,10.6333,84.665,84.622,20.59669236]
[1771612650631,10.6333,84.665,84.582,21.2872]
[1771612650632,20.57748795,84.665,84.58,30.14446224]
[1771612650833,20.57748795,84.665,84.581,20.59669236]
[1771612651633,20.57748795,84.664,84.581,20.59669236]
[1771612651832,20.57748795,84.659,84.581,20.59669236]
[1771612652738,20.57748795,84.659,84.566,10.6457]
[1771612652937,20.57748795,84.659,84.562,20.59669236]
[1771612653735,10.6382,84.627,84.573,10.6448]
[1771612654231,10.6368,84.638,84.574,20.59669236]
[1771612654638,20.57748795,84.659,84.574,20.59669236]
[1771612655342,10.6381,84.627,84.574,31.24139236]
[1771612656338,10.6394,84.617,84.561,10.6463]
[1771612656641,20.57748795,84.638,84.554,20.59669236]
[1771612656839,20.57748795,84.658,84.561,20.59669236]
[1771612657137,20.57748795,84.679,84.601,20.59669236]
[1771612657440,20.57748795,84.679,84.548,165.635]
[1771612657441,10.6311,84.683,84.635,10.6369]
[1771612657835,18.8903276,84.7,84.635,10.6369]
[1771612658135,18.8903276,84.7,84.62,9.54776988]
[1771612658136,18.8903276,84.7,84.627,19.38747639]
[1771612658631,18.8903276,84.699,84.62,9.54776988]
[1771612658831,18.8903276,84.699,84.604,19.38747639]
[1771612659231,10.6357,84.646,84.604,19.38747639]
[1771612659430,18.8903276,84.669,84.604,19.38747639]
[1771612659833,18.8903276,84.669,84.614,10.6396]
[1771612660132,18.8903276,84.669,84.604,19.38747639]
[1771612660538,18.8903276,84.697,84.614,10.6396]
[1771612660834,18.8903276,84.697,84.604,19.38747639]
[1771612661040,18.8903276,84.679,84.598,10.6416]
[1771612661337,10.6341,84.659,84.585,19.38747639]
[1771612662236,10.6341,84.659,84.558,21.2933]
[1771612662237,10.6329,84.669,84.612,10.6398]
[1771612662436,21.2541,84.715,84.601,19.38747639]
[1771612662437,9.54776988,84.7,84.601,19.38747639]
[1771612662735,18.8903276,84.705,84.621,19.38747639]
[1771612663240,10.6304,84.688,84.637,10.6367]
[1771612663735,10.6316,84.678,84.627,10.638]
[1771612663938,18.8903276,84.705,84.621,19.38747639]
[1771612664337,10.6294,84.696,84.645,10.6358]
[1771612664542,18.8903276,84.705,84.621,19.38747639]
[1771612665144,18.8903276,84.725,84.631,19.38747639]
[1771612665638,18.8903276,84.689,84.599,19.38747639]
[1771612666144,18.8903276,84.689,84.61,10.6401]
[1771612666145,10.6327,84.67,84.61,10.6401]
[1771612666742,10.6336,84.663,84.61,10.6401]
[1771612667045,18.8903276,84.689,84.61,10.6401]
[1771612667246,18.8903276,84.667,84.599,19.38747639]
[1771612667947,10.6332,84.666,84.6,10.6414]
[1771612668658,10.6332,84.666,84.599,19.38747639]
[1771612668659,18.8903276,84.667,84.607,10.6404]
[1771612669145,10.6316,84.678,84.599,19.38747639]
[1771612669343,18.8903276,84.687,84.607,10.6406]
[1771612669748,18.8903276,84.69,84.599,19.38747639]
[1771612670053,18.8903276,84.69,84.611,19.38747639]
[1771612670253,18.8903276,84.689,84.611,19.38747639]
[1771612670649,18.8903276,84.682,84.62,10.6388]
[1771612671356,10.6319,84.677,84.613,19.38747639]
[1771612671648,18.8903276,84.677,84.613,19.38747639]
[1771612672555,10.6337,84.662,84.613,19.38747639]
[1771612672756,18.8903276,84.677,84.613,19.38747639]
[1771612673057,10.6335,84.663,84.6,10.6413]
[1771612673250,18.8903276,84.677,84.601,19.38747639]
[1771612673554,10.633,84.667,84.604,19.38747639]
[1771612673755,18.8903276,84.677,84.604,19.38747639]
[1771612674546,10.6341,84.659,84.604,19.38747639]
[1771612674750,18.8903276,84.677,84.604,19.38747639]
[1771612675456,10.634,84.66,84.605,10.6407]
[1771612676555,10.634,84.66,84.604,19.38747639]
[1771612676747,10.635,84.652,84.604,19.38747639]
[1771612676947,18.8903276,84.66,84.583,19.38747639]
[1771612677655,18.8903276,84.66,84.585,10.6432]
[1771612677656,10.6363,84.641,84.585,10.6432]
[1771612677857,10.6363,84.641,84.583,19.38747639]
[1771612678757,10.6363,84.641,84.592,10.6424]
[1771612680257,18.8903276,84.66,84.583,19.38747639]
[1771612680653,10.6366,84.639,84.588,19.38747639]
[1771612681258,10.6375,84.632,84.588,19.38747639]
[1771612681960,10.6365,84.639,84.589,10.6427]
[1771612682260,10.6365,84.639,84.588,19.38747639]
[1771612682555,18.8903276,84.657,84.599,10.6415]
[1771612682766,18.8903276,84.657,84.591,19.38747639]
[1771612683071,18.8903276,84.679,84.614,19.38747639]
[1771612684458,18.8903276,84.676,84.614,19.38747639]
[1771612684657,18.8903276,84.699,84.62,9.56938099]
[1771612684850,18.8903276,84.719,84.641,19.38747639]
[1771612685253,18.8903276,84.719,84.66,19.38747639]
[1771612685455,18.8903276,84.779,84.701,19.38747639]
[1771612685656,18.8903276,84.821,84.76,10.6213]
[1771612685953,18.8903276,84.821,84.741,19.38747639]
[1771612686558,18.151605,84.819,84.741,19.38747639]
[1771612687358,17.21435875,84.817,84.72,27.27211024]
[1771612687554,17.21435875,84.817,84.721,17.70272925]
[1771612688060,17.21435875,84.808,84.735,17.70272925]
[1771612688256,17.21435875,84.83,84.751,17.70272925]
[1771612688978,17.21435875,84.83,84.766,10.6206]
[1771612689463,17.21435875,84.83,84.751,17.70272925]
[1771612690662,17.21435875,84.83,84.776,10.6193]
[1771612691057,17.21435875,84.851,84.776,17.70272925]
[1771612691464,17.21435875,84.851,84.786,10.618]
[1771612691862,17.21435875,84.849,84.78,10.6188]
[1771612692161,17.21435875,84.849,84.75,9.56938099]
[1771612692368,17.21435875,84.839,84.751,17.70272925]
[1771612692561,17.21435875,84.836,84.753,10.6222]
[1771612692761,11.85519144,84.858,84.731,17.70272925]
[1771612692762,17.21435875,84.819,84.731,17.70272925]
[1771612693260,11.85519144,84.858,84.661,165.4133]
[1771612693261,17.21435875,84.799,84.71,27.27211024]
[1771612693462,17.21435875,84.799,84.711,17.70272925]
[1771612693763,17.21435875,84.795,84.712,10.6273]
[1771612694466,17.21435875,84.813,84.73,9.56938099]
[1771612694660,17.21435875,84.813,84.731,17.70272925]
[1771612695063,17.21435875,84.813,84.735,10.6245]
[1771612695768,17.21435875,84.812,84.731,17.70272925]
[1771612695972,17.21435875,84.809,84.731,17.70272925]
[1771612696168,17.21435875,84.793,84.731,17.70272925]
[1771612696469,17.21435875,84.793,84.712,10.6273]
[1771612696870,10.6177,84.789,84.712,10.6273]
[1771612697070,17.21435875,84.789,84.711,17.70272925]
[1771612698064,17.21435875,84.768,84.69,9.56938099]
[1771612698465,17.21435875,84.768,84.691,17.70272925]
[1771612698664,10.6187,84.782,84.703,17.70272925]
[1771612699067,17.21435875,84.781,84.703,17.70272925]
[1771612699773,17.21435875,84.78,84.703,17.70272925]
[1771612700472,10.6193,84.776,84.703,17.70272925]
[1771612701266,27.83365875,84.776,84.703,17.70272925]
[1771612701569,17.21435875,84.776,84.703,17.70272925]
[1771612703777,10.6206,84.766,84.703,17.70272925]
[1771612703977,17.21435875,84.776,84.703,17.70272925]
[1771612704177,17.21435875,84.769,84.671,17.70272925]
[1771612704880,17.21435875,84.769,84.674,17.70272925]
[1771612705773,17.21435875,84.79,84.7,9.56938099]
[1771612705983,17.21435875,84.79,84.721,17.70272925]
[1771612706172,17.21435875,84.819,84.741,17.70272925]
[1771612706377,10.6167,84.798,84.741,17.70272925]
[1771612707278,10.6177,84.79,84.741,17.70272925]
[1771612707580,17.21435875,84.8,84.741,17.70272925]
[1771612707781,17.21435875,84.819,84.741,17.70272925]
[1771612708279,10.6166,84.799,84.741,17.70272925]
[1771612709069,17.21435875,84.819,84.741,17.70272925]
[1771612709070,10.6176,84.79,84.741,17.70272925]
[1771612709474,10.6176,84.79,84.731,10.6249]
[1771612709678,10.6187,84.782,84.722,17.70272925]
[1771612710184,10.6175,84.791,84.732,10.6248]
[1771612710390,17.21435875,84.797,84.732,10.6248]
[1771612711383,17.21435875,84.797,84.733,17.70272925]
[1771612712982,10.6186,84.783,84.733,17.70272925]
[1771612713384,17.21435875,84.797,84.72,9.56938099]
[1771612713583,17.21435875,84.797,84.714,17.70272925]
[1771612714092,17.21435875,84.797,84.725,17.70272925]
[1771612715479,10.6204,84.768,84.725,17.70272925]
[1771612715884,17.21435875,84.797,84.725,17.70272925]
[1771612716283,17.21435875,84.797,84.727,10.6254]
[1771612716786,17.21435875,84.797,84.701,17.70272925]
[1771612717284,10.6179,84.788,84.721,27.07857117]
[1771612717584,17.21435875,84.797,84.721,16.45247117]
[1771612718090,17.21435875,84.797,84.72,9.56938099]
[1771612718091,17.21435875,84.797,84.73,16.45247117]
[1771612718588,10.6198,84.773,84.713,10.6272]
[1771612718795,17.77702604,84.772,84.713,10.6272]
[1771612718989,17.77702604,84.772,84.713,27.07967117]
[1771612719291,17.77702604,84.772,84.716,10.6269]
[1771612719292,10.6204,84.768,84.716,10.6269]
[1771612720190,9.56938099,84.8,84.721,10.6262]
[1771612720191,10.6194,84.776,84.721,10.6262]
[1771612720385,17.77702604,84.79,84.722,16.45247117]
[1771612720585,17.77702604,84.819,84.722,16.45247117]
[1771612720783,10.6174,84.792,84.735,16.45247117]
[1771612720986,17.77702604,84.819,84.735,16.45247117]
[1771612721391,10.6185,84.784,84.735,16.45247117]
[1771612721888,10.6193,84.777,84.735,16.45247117]
[1771612722087,17.77702604,84.799,84.72,9.56938099]
[1771612722294,17.77702604,84.799,84.72,26.02185216]
[1771612722486,17.77702604,84.799,84.731,16.45247117]
[1771612723290,10.6178,84.789,84.74,10.6237]
[1771612723502,10.6178,84.789,84.74,27.07617117]
[1771612723992,17.77702604,84.799,84.74,16.45247117]
[1771612724690,10.6194,84.776,84.725,10.6257]
[1771612724895,10.6194,84.776,84.726,16.45247117]
[1771612725187,10.6194,84.776,84.731,10.6249]
[1771612725391,10.6185,84.783,84.726,16.45247117]
[1771612726306,10.6193,84.777,84.737,16.45247117]
[1771612727191,10.6178,84.789,84.745,10.6231]
[1771612727396,17.77702604,84.817,84.741,16.45247117]
[1771612728694,10.6167,84.798,84.752,10.6222]
[1771612728889,17.77702604,84.817,84.741,16.45247117]
[1771612729290,10.619,84.779,84.733,10.6246]
[1771612730693,10.619,84.779,84.692,14.49358109]
[1771612730694,17.77702604,84.779,84.692,14.49358109]
[1771612730890,17.77702604,84.759,84.685,16.45247117]
[1771612731493,10.6234,84.744,84.686,16.45247117]
[1771612731798,17.77702604,84.759,84.686,16.45247117]
[1771612732090,17.77702604,84.779,84.703,16.45247117]
[1771612732796,9.56938099,84.78,84.68,9.56938099]
[1771612732797,28.39752604,84.767,84.708,16.45247117]
[1771612732987,17.77702604,84.767,84.708,16.45247117]
[1771612733386,17.77702604,84.767,84.71,10.6275]
[1771612734293,17.77702604,84.767,84.708,16.45247117]
[1771612734690,9.56938099,84.78,84.708,16.45247117]
[1771612734892,10.6196,84.775,84.716,10.6268]
[1771612735093,17.77702604,84.779,84.716,10.6268]
[1771612735290,17.77702604,84.779,84.708,16.45247117]
[1771612735501,10.6204,84.768,84.708,16.45247117]
[1771612735698,17.77702604,84.779,84.69,16.45247117]
[1771612736197,10.6243,84.737,84.69,16.45247117]
[1771612736395,17.77702604,84.748,84.672,16.45247117]
[1771612736596,17.77702604,84.748,84.681,16.45247117]
[1771612737703,10.6233,84.745,84.691,10.6299]
[1771612738191,10.6233,84.745,84.681,16.45247117]
[1771612738390,10.6222,84.753,84.69,16.45247117]
[1771612738597,17.77702604,84.766,84.69,16.45247117]
[1771612740510,9.56938099,84.76,84.673,16.45247117]
[1771612740711,17.77702604,84.759,84.673,16.45247117]
[1771612741611,17.77702604,84.759,84.66,9.56938099]
[1771612741612,17.77702604,84.776,84.693,16.45247117]
[1771612741914,21.60848551,84.8,84.711,16.45247117]
[1771612741915,17.77702604,84.793,84.711,16.45247117]
[1771612742308,17.77702604,84.775,84.711,16.45247117]
[1771612742909,17.77702604,84.775,84.713,16.45247117]
[1771612744109,10.6204,84.768,84.716,10.6268]
[1771612744312,17.77702604,84.775,84.713,16.45247117]
[1771612744510,17.77702604,84.775,84.695,16.45247117]
[1771612744707,10.6217,84.758,84.706,16.45247117]
[1771612745005,17.77702604,84.775,84.706,16.45247117]
[1771612745204,10.6202,84.77,84.714,16.45247117]
[1771612745811,10.6215,84.759,84.714,16.45247117]
[1771612746212,17.77702604,84.775,84.714,16.45247117]
[1771612746408,17.77702604,84.793,84.73,27.07757117]
[1771612746812,17.77702604,84.793,84.712,16.15776039]
[1771612747214,10.6203,84.769,84.712,16.15776039]
[1771612747607,16.79671732,84.779,84.694,16.44290043]
[1771612748021,10.6212,84.762,84.712,10.6273]
[1771612748413,10.6212,84.762,84.714,10.627]
[1771612748615,10.6212,84.762,84.715,16.44290043]
[1771612749319,10.6201,84.771,84.716,10.6268]
[1771612749515,16.79671732,84.779,84.715,16.44290043]
[1771612749914,16.79671732,84.779,84.715,27.06980043]
[1771612750514,10.6196,84.774,84.716,16.44290043]
[1771612750711,8.63842796,84.799,84.716,16.44290043]
[1771612750915,21.2273,84.822,84.736,10.6243]
[1771612750916,10.6185,84.783,84.736,10.6243]
[1771612751115,16.79671732,84.798,84.737,16.44290043]
[1771612751319,8.63842796,84.814,84.737,16.44290043]
[1771612751517,25.43514528,84.813,84.737,16.44290043]
[1771612751721,16.79671732,84.811,84.737,16.44290043]
[1771612752022,16.79671732,84.809,84.737,16.44290043]
[1771612752421,16.79671732,84.809,84.739,16.44290043]
[1771612752622,16.79671732,84.799,84.721,16.44290043]
[1771612753018,10.6183,84.785,84.732,16.44290043]
[1771612753612,10.6174,84.792,84.736,16.44290043]
[1771612754522,16.79671732,84.819,84.751,16.44290043]
[1771612755216,16.79671732,84.838,84.77,16.44290043]
[1771612755818,10.6117,84.837,84.787,10.6179]
[1771612756213,10.6117,84.837,84.77,16.44290043]
[1771612756621,16.79671732,84.856,84.78,16.44290043]
[1771612757726,10.6126,84.83,84.782,16.44290043]
[1771612758125,16.79671732,84.856,84.782,16.44290043]
[1771612758425,10.6104,84.848,84.791,10.6174]
[1771612758624,16.79671732,84.856,84.791,16.44290043]
[1771612760424,16.79671732,84.842,84.773,16.44290043]
[1771612761625,10.6129,84.828,84.773,16.44290043]
[1771612761817,10.90794473,84.885,84.773,16.44290043]
[1771612761818,16.79671732,84.839,84.773,16.44290043]
[1771612762422,16.79671732,84.839,84.775,27.06230043]
[1771612762723,16.79671732,84.839,84.776,16.44290043]
[1771612763227,10.6143,84.817,84.776,16.44290043]
[1771612763925,10.6133,84.825,84.776,16.44290043]
[1771612764128,16.79671732,84.839,84.776,16.44290043]
[1771612765925,10.6142,84.817,84.776,16.44290043]
[1771612766626,10.6127,84.83,84.779,10.6189]
[1771612766828,16.79671732,84.856,84.781,16.44290043]
[1771612767529,10.6103,84.849,84.799,27.05930043]
[1771612767727,10.6103,84.849,84.8,16.44290043]
[1771612768621,16.79671732,84.856,84.764,16.44290043]
[1771612768827,16.79671732,84.856,84.779,10.6189]
[1771612769223,16.79671732,84.832,84.764,16.44290043]
[1771612769425,16.79671732,84.832,84.725,21.2513]
[1771612769426,16.79671732,84.832,84.731,16.44290043]
[1771612769732,16.79671732,84.832,84.751,16.44290043]
[1771612769931,16.79671732,84.819,84.751,16.44290043]
[1771612770623,10.6142,84.818,84.762,16.44290043]
[1771612770823,16.79671732,84.839,84.762,16.44290043]
[1771612771129,16.79671732,84.859,84.784,16.44290043]
[1771612771733,10.6104,84.848,84.794,10.617]
[1771612772229,10.92014606,84.896,84.747,21.2459]
[1771612772230,16.79671732,84.876,84.807,16.44290043]
[1771612772834,10.6081,84.866,84.807,16.44290043]
[1771612773228,8.58239898,84.901,84.811,16.44290043]
[1771612773229,16.79671732,84.893,84.811,16.44290043]
[1771612773730,10.6063,84.881,84.813,16.44290043]
[1771612774037,16.79671732,84.893,84.813,16.44290043]
[1771612774335,10.6074,84.872,84.813,16.44290043]
[1771612774926,9.54644901,84.9,84.813,16.44290043]
[1771612774927,10.6084,84.864,84.813,16.44290043]
[1771612775234,16.79671732,84.876,84.813,16.44290043]
[1771612775635,10.6082,84.865,84.813,16.44290043]
[1771612776731,10.6112,84.841,84.796,16.44290043]
[1771612776933,16.79671732,84.859,84.796,16.44290043]
[1771612777833,16.79671732,84.859,84.78,9.54644901]
[1771612777834,16.79671732,84.859,84.797,16.37996608]
[1771612778428,16.79671732,84.859,84.78,9.54644901]
[1771612778429,15.95072029,84.879,84.801,16.37996608]
[1771612778631,15.95072029,84.896,84.801,16.37996608]
[1771612778834,15.95072029,84.895,84.801,16.37996608]
[1771612779138,15.95072029,84.895,84.78,9.54644901]
[1771612779139,15.95072029,84.895,84.821,16.37996608]
[1771612779436,17.48406276,84.899,84.835,16.37996608]
[1771612780237,10.6043,84.896,84.835,16.37996608]
[1771612780733,10.607,84.875,84.835,16.37996608]
[1771612780928,15.95072029,84.879,84.8,16.37996608]
[1771612781426,15.95072029,84.861,84.8,16.37996608]
[1771612782240,10.6094,84.856,84.8,16.37996608]
[1771612782637,15.95072029,84.839,84.761,16.37996608]
[1771612783039,21.2163,84.866,84.666,165.404]
[1771612783040,10.6148,84.813,84.742,16.37996608]
[1771612783234,15.95072029,84.819,84.752,16.37996608]
[1771612784940,10.6146,84.814,84.756,16.37996608]
[1771612785744,15.95072029,84.819,84.756,16.37996608]
[1771612786644,10.6157,84.806,84.756,16.37996608]
[1771612787441,15.95072029,84.819,84.756,16.37996608]
[1771612787442,10.6167,84.798,84.756,16.37996608]
[1771612787646,10.6167,84.798,84.737,16.37996608]
[1771612787845,10.6177,84.789,84.737,16.37996608]
[1771612788039,15.95072029,84.802,84.69,35.38]
[1771612788040,15.95072029,84.802,84.698,16.37996608]
[1771612788442,10.621,84.763,84.7,16.37996608]
[1771612788641,10.621,84.763,84.66,9.54644901]
[1771612788642,15.95072029,84.759,84.661,16.37996608]
[1771612789044,15.95072029,84.759,84.691,16.37996608]
[1771612789649,15.95072029,84.757,84.691,16.37996608]
[1771612790246,15.95072029,84.745,84.671,16.37996608]
[1771612790647,15.95072029,84.769,84.671,16.37996608]
[1771612791047,15.95072029,84.769,84.691,16.37996608]
[1771612791648,26.57092029,84.769,84.692,16.37996608]
[1771612791852,15.95072029,84.768,84.674,16.37996608]
[1771612792346,10.6248,84.733,84.674,16.37996608]
[1771612792750,15.95072029,84.741,84.674,16.37996608]
[1771612792955,15.95072029,84.759,84.674,16.37996608]
[1771612793352,26.57282029,84.754,84.676,16.37996608]
[1771612794752,26.57282029,84.754,84.68,16.37996608]
[1771612795248,10.6235,84.744,84.68,16.37996608]
[1771612797752,10.6241,84.738,84.68,16.37996608]
[1771612798651,15.95072029,84.763,84.691,16.37996608]
[1771612799247,15.95072029,84.763,84.702,16.37996608]
[1771612799547,15.95072029,84.763,84.67,9.54644901]
[1771612799548,15.95072029,84.781,84.711,16.37996608]
[1771612800353,10.6178,84.789,84.726,16.37996608]
[1771612800746,15.95072029,84.788,84.726,16.37996608]
[1771612800952,15.95072029,84.77,84.703,16.37996608]
[1771612801153,15.95072029,84.77,84.67,9.54644901]
[1771612801154,15.95072029,84.769,84.671,16.37996608]
[1771612801349,15.95072029,84.759,84.69,16.37996608]
[1771612802352,15.95072029,84.759,84.691,16.37996608]
[1771612803353,11.23072029,84.759,84.673,16.37996608]
[1771612803656,9.54644901,84.77,84.673,16.37996608]
[1771612803854,9.55731899,84.76,84.673,16.37996608]
[1771612804250,9.55731899,84.76,84.676,16.37996608]
[1771612804759,10.6192,84.778,84.71,16.37996608]
[1771612805054,9.55731899,84.79,84.71,16.37996608]
[1771612805262,13.87036966,84.795,84.713,16.37996608]
[1771612805652,13.83681923,84.789,84.7,9.55731899]
[1771612805854,13.83681923,84.776,84.702,10.6285]
[1771612806057,13.83765619,84.769,84.695,16.37996608]
[1771612806355,9.55731899,84.77,84.696,10.6294]
[1771612806356,13.83765619,84.76,84.696,10.6294]
[1771612806752,13.83765619,84.76,84.695,16.37996608]
[1771612807057,13.83765619,84.76,84.704,10.6283]
[1771612807259,13.7497498,84.778,84.704,14.90780798]
[1771612807459,13.7497498,84.776,84.712,10.6273]
[1771612807663,13.7497498,84.776,84.681,14.90780798]
[1771612808460,13.71943144,84.764,84.681,14.90780798]
[1771612809459,24.26558429,84.744,84.686,10.6306]
[1771612809657,13.64208429,84.743,84.663,14.90780798]
[1771612810163,10.6256,84.726,84.663,14.90780798]
[1771612811258,13.59078393,84.734,84.665,14.90780798]
[1771612811957,10.6225,84.751,84.678,14.90780798]
[1771612812163,13.5607676,84.75,84.678,14.90780798]
[1771612812359,13.5607676,84.75,84.66,9.55731899]
[1771612812663,13.5607676,84.731,84.661,14.90780798]
[1771612813061,10.6261,84.722,84.661,14.90780798]
[1771612813467,13.5607676,84.731,84.661,14.90780798]
[1771612813866,13.5607676,84.731,84.663,14.90780798]
[1771612814970,10.6243,84.737,84.68,9.55731899]
[1771612815269,13.40975514,84.751,84.681,14.90780798]
[1771612815968,10.6239,84.74,84.682,14.90780798]
[1771612816269,13.40975514,84.751,84.682,14.90780798]
[1771612816868,10.6258,84.725,84.682,14.90780798]
[1771612817373,13.40975514,84.751,84.682,14.90780798]
[1771612817670,13.40975514,84.751,84.685,14.90780798]
[1771612817671,10.6242,84.738,84.685,14.90780798]
[1771612818664,10.6229,84.748,84.687,14.90780798]
[1771612818864,13.24933525,84.769,84.701,14.90780798]
[1771612820069,13.24933525,84.769,84.715,14.90780798]
[1771612820778,13.16779436,84.787,84.715,14.90780798]
[1771612821375,10.6206,84.766,84.715,14.90780798]
[1771612821573,13.19107105,84.806,84.715,14.90780798]
[1771612821777,13.59416662,84.775,84.72,9.55731899]
[1771612821974,13.59416662,84.775,84.715,14.46512697]
[1771612822369,13.59416662,84.775,84.72,10.6264]
[1771612822573,13.55428142,84.806,84.72,9.55731899]
[1771612823479,13.6025446,84.788,84.72,9.55731899]
[1771612823874,10.6202,84.77,84.72,9.55731899]
[1771612824269,13.6025446,84.788,84.721,14.90780798]
[1771612824474,21.2285,84.818,84.721,14.90780798]
[1771612824475,13.56415684,84.805,84.721,14.90780798]
[1771612824776,13.56415684,84.805,84.733,10.6246]
[1771612825476,13.59158346,84.787,84.721,14.90780798]
[1771612825672,13.59158346,84.787,84.724,14.90780798]
[1771612826277,21.2285,84.818,84.724,14.90780798]
[1771612826278,13.55400947,84.806,84.724,14.90780798]
[1771612826477,10.6166,84.798,84.746,10.6231]
[1771612826680,10.6166,84.798,84.747,14.90780798]
[1771612826978,24.16970947,84.806,84.751,10.6224]
[1771612827386,13.55400947,84.806,84.751,10.6224]
[1771612827686,13.55400947,84.806,84.758,10.6215]
[1771612828078,21.2221,84.843,84.752,14.90780798]
[1771612828279,10.6142,84.817,84.765,10.6207]
[1771612828685,13.48892312,84.824,84.769,14.90780798]
[1771612829278,10.6138,84.821,84.769,14.90780798]
[1771612829583,13.55305093,84.82,84.76,9.55731899]
[1771612829988,10.6143,84.817,84.768,10.6203]
[1771612830185,10.6143,84.817,84.76,9.55731899]
[1771612830186,13.55305093,84.82,84.76,9.55731899]
[1771612830384,13.55305093,84.82,84.761,14.90780798]
[1771612830590,13.48053224,84.838,84.775,10.6194]
[1771612830790,13.48053224,84.838,84.761,14.90780798]
[1771612831191,13.48053224,84.838,84.723,165.2924]
[1771612831192,13.48053224,84.838,84.784,14.90780798]
[1771612831389,13.5014342,84.877,84.784,14.90780798]
[1771612831989,13.5014342,84.877,84.801,14.90780798]
[1771612831990,13.4660077,84.876,84.801,14.90780798]
[1771612832390,13.4660077,84.876,84.823,10.6134]
[1771612832686,13.4660077,84.876,84.78,9.55731899]
[1771612832687,13.43013234,84.898,84.821,14.90780798]
[1771612832895,13.43013234,84.898,84.82,9.55731899]
[1771612832896,17.48406276,84.899,84.841,14.90780798]
[1771612833086,17.48406276,84.899,84.866,10.6081]
[1771612833391,17.48406276,84.899,84.841,14.90780798]
[1771612833392,17.33162101,84.899,84.841,14.90780798]
[1771612833783,17.33162101,84.899,84.854,10.6095]
[1771612833988,17.33162101,84.899,84.841,14.90780798]
[1771612834189,2.101e-05,84.899,84.861,14.90780798]
[1771612834384,2.101e-05,84.899,84.817,165.1102]
[1771612834385,13.37331565,84.969,84.881,14.90780798]
[1771612834889,13.37331565,84.969,84.843,165.0585]
[1771612834890,13.37331565,84.969,84.901,14.90780798]
[1771612835297,13.34918598,84.967,84.891,10.6049]
[1771612835488,13.34918598,84.967,84.869,14.90780798]
[1771612836390,13.31528311,84.964,84.869,14.90780798]
[1771612836590,13.31528311,84.964,84.881,14.90780798]
[1771612837095,13.31528311,84.964,84.885,14.10230463]
[1771612837594,13.31528311,84.964,84.901,14.10230463]
[1771612838084,13.16641434,84.983,84.903,14.10230463]
[1771612838892,235.88,85.037,84.941,14.10230463]
[1771612838893,13.19655544,85.008,84.941,14.10230463]
[1771612839092,13.19655544,85.028,84.96,23.65962362]
[1771612839397,13.19655544,85.028,84.941,14.10230463]
[1771612839797,10.5884,85.024,84.952,14.10230463]
[1771612840000,13.19655544,85.028,84.961,14.10230463]
[1771612840792,13.19655544,85.028,84.941,14.10230463]
[1771612841200,13.09432923,85.015,84.941,14.10230463]
[1771612841792,13.06346425,85.035,84.951,14.10230463]
[1771612842397,13.06346425,85.035,84.958,14.10230463]
[1771612842589,13.06346425,85.035,84.912,164.9248]
[1771612842590,10.5864,85.04,84.971,14.10230463]
[1771612842788,13.03230535,85.056,84.971,14.10230463]
[1771612842996,13.03230535,85.056,84.991,14.10230463]
[1771612843389,10.5845,85.056,84.991,14.10230463]
[1771612843591,9.55731899,85.09,85.001,14.10230463]
[1771612843592,13.09074712,85.075,85.001,14.10230463]
[1771612844398,10.5805,85.087,85.021,14.10230463]
[1771612844594,13.0912571,85.086,85.021,14.10230463]
[1771612844995,2.04610799,85.112,85.001,14.10230463]
[1771612844996,12.78073781,85.076,85.001,14.10230463]
[1771612845200,12.78073781,85.076,85.0,9.55731899]
[1771612845601,10.5849,85.052,85.0,9.55731899]
[1771612845800,10.5849,85.052,84.981,14.10230463]
[1771612846300,12.751183,85.056,84.97,9.55731899]
[1771612846495,12.751183,85.056,84.96,14.10230463]
[1771612846694,12.72125442,85.03,84.96,14.10230463]
[1771612847093,10.5902,85.01,84.96,14.10230463]
[1771612847994,10.5888,85.021,84.961,14.10230463]
[1771612848201,12.72125442,85.03,84.961,14.10230463]
[1771612848406,10.588,85.027,84.961,14.10230463]
[1771612849205,10.5865,85.04,84.961,14.10230463]
[1771612849394,12.66884319,85.05,84.981,14.10230463]
[1771612849596,12.66884319,85.089,85.001,14.10230463]
[1771612849999,12.66884319,85.089,85.02,9.55731899]
[1771612850194,12.66884319,85.089,85.021,14.10230463]
[1771612850406,12.66884319,85.089,84.96,9.55731899]
[1771612850407,12.64058234,85.117,85.041,14.10230463]
[1771612851299,12.61977295,85.109,85.02,9.55731899]
[1771612851806,10.5828,85.07,85.018,14.10230463]
[1771612852200,10.5839,85.061,85.0,9.55731899]